Cogmind - Beta 16 @@@ ROGUE MODE // 2025.11.11 @ 16:21:48 Player: Lazz Result: Destroyed by as-78401 with Assembled Heavy Rifle Performance ------------- Evolutions (1) 500 Regions Visited (3) 600 Robots Destroyed (19) 95 Value Destroyed (578) 578 Prototype IDs (0) 0 Alien Tech Used (0) 0 Bonus (0) 0 TOTAL SCORE: 1773 Bonus ------- None Cogmind --------- Core Integrity 0/400 Matter 300/300 Energy 140/140 System Corruption 0% Temperature Cool (0) Movement Treading (240) Ox1 Location -9/Mines Parts ------- > --- POWER (1) -------- Light Deuterium Engine > --- PROPULSION (2) --- Light Treads > --- UTILITY (3) ------ Large Storage Unit Signal Interpreter > --- WEAPON (3) ------- Heavy Particle Cannon Light Assault Rifle > --- INVENTORY (15) --- Light Treads Light Treads Flexi-carbon Leg High-capacity Storage Unit Improved Terrain Scanner Mini Grenade Launcher Mining Laser Peak State ------------ > --- POWER ------------ Light Deuterium Engine > --- PROPULSION ------- Light Treads Light Treads > --- UTILITY ---------- Large Storage Unit Signal Interpreter Improved Terrain Scanner > --- WEAPON ----------- Heavy Particle Cannon Assault Rifle Light Assault Rifle > --- INVENTORY -------- Light Deuterium Engine Light Treads Light Treads Light Treads Improved Terrain Scanner Heavy Particle Cannon Heavy Particle Cannon Mining Laser [Rating: 16] Favorites ----------- Power Light Ion Engine Engine Light Ion Engine Propulsion Light Treads Treads Light Treads Leg Aluminum Leg Utility Improved Terrain Scanner Device Improved Terrain Scanner Storage Small Storage Unit Processor Signal Interpreter Weapon Light Assault Rifle Energy Gun Particle Gun Energy Cannon Heavy Particle Cannon Ballistic Gun Light Assault Rifle Special Weapon Mining Laser Build | -11 -10 -9 -9 ------- Run | Yrd Mat Mat Min Slots Evolved 2 | . . 2 . Power . | . . . . Propulsion . | . . . . Utility 1 | . . 1 . Weapon 1 | . . 1 . Parts Attached 21 | 5 3 7 6 Power 3 | 1 . 1 1 Engine 3 | 1 . 1 1 Core . | . . . . Reactor . | . . . . Propulsion 6 | 1 1 2 2 Treads 4 | . . 2 2 Leg 2 | 1 1 . . Wheel . | . . . . Hover . | . . . . Flight . | . . . . Utility 4 | 1 1 2 . Device 1 | . 1 . . Storage 2 | 1 . 1 . Processor 1 | . . 1 . Hackware . | . . . . Protection . | . . . . Artifact . | . . . . Weapon 8 | 2 1 2 3 Energy Gun 1 | . . 1 . Energy Cannon 3 | . . 1 2 Ballistic Gun 3 | 2 . . 1 Ballistic Cannon . | . . . . Launcher . | . . . . Special Weapon 1 | . 1 . . Impact Weapon . | . . . . Slashing Weapon . | . . . . Piercing Weapon . | . . . . Special Melee Weapon . | . . . . Unidentified Prototypes . | . . . . Parts Lost 10 | . . 8 2 Power 2 | . . 2 . Propulsion 3 | . . 2 1 Utility 1 | . . 1 . Weapon 4 | . . 3 1 Highest Loss Streak 7 | . . 7 2 To Critical Strikes . | . . . . Average Backups 6 | 4 5 7 4 Power 1 | . 1 1 . Propulsion 2 | 2 2 2 1 Utility . | . . . 2 Weapon 2 | . 2 2 1 Tool/Special . | . . . . Unused Backups 6 | . 1 2 3 Power 1 | . . 1 . Propulsion 1 | . . . 1 Utility 2 | . . . 2 Weapon 2 | . 1 1 . Tool/Special . | . . . . Average Slot Usage (%) 89 | . 95 89 81 Engine 9 | . 14 8 10 Treads 13 | . . 16 21 Leg 7 | . 23 4 . Device 9 | . 14 9 . Storage 11 | . 14 11 11 Processor 7 | . . 9 11 Energy Cannon 8 | . . 8 20 Ballistic Gun 18 | . 24 19 7 Special Weapon 1 | . 3 . . Peak Build Rating 16 | 5 9 16 15 Average Rating 10 | 4 8 12 13 On Entrance 4 | . 5 9 3 Avg Prop Armor Cover (%) . | . . . . Naked Turns . | . . . . Heaviest Build 38 | 11 12 35 38 Greatest Support 40 | 10 20 40 40 Greatest Overweight (x) 9 | 1 1 9 . Average Overweight (x) . | . . . . Largest Inventory Capacity 15 | 8 8 15 15 Average Capacity 11 | 7 8 12 15 Most Carried 9 | 7 7 9 8 Average Carried 6 | 4 5 7 4 Final Capacity 15 | 8 8 15 15 Final Carried 9 | 7 5 9 7 Class Distribution -------------------- 49% | Skirmisher 42% | Mutant 8% | Gunner Dominant Class ---------------- Mutant | -10/Materials Skirmisher | -9/Materials Gunner | -9/Mines Resources | -11 -10 -9 -9 ----------- Run | Yrd Mat Mat Min Matter Collected 642 | 278 . 307 57 Remotely . | . . . . Salvage Created 824 | 123 . 590 111 Parts 48 | 7 . 37 4 Haulers Intercepted 1 | . . 1 . Recyclers Shooed 1 | . . 1 . Parts Field Recycled . | . . . . Retrieved Matter . | . . . . Parts Self-Destructed . | . . . . Prevented . | . . . . Parts Restored . | . . . . Kills | -11 -10 -9 -9 ------- Run | Yrd Mat Mat Min Combat Hostiles Destroyed 16 | . . 12 4 Guns 1 | . . 1 . Cannons 15 | . . 11 4 Classes Destroyed 8 | 2 . 4 2 Tunneler 1 | 1 . . . Hauler 1 | . . 1 . Recycler 1 | 1 . . . Watcher 1 | . . 1 . Swarmer 3 | . . . 3 Grunt 9 | . . 9 . Sentry 3 | . . 3 . Assembled 1 | . . . 1 Best Kill Streak 4 | 1 . 4 3 Combat Bots Only 4 | . . 4 3 Max Kills in Single Turn 1 | 1 . 1 1 Gunslinging . | . . . . Exploded . | . . . . Melee . | . . . . Uniques/NPCs Destroyed . | . . . . Combat | -11 -10 -9 -9 -------- Run | Yrd Mat Mat Min Hostile Shots Fired 161 | . . 119 42 Missed 36 | . . 25 11 Hits 125 | . . 94 31 Projectile 125 | . . 94 31 AOE 7 | . . . 7 Critical Strikes 5 | . . 4 1 Damage Taken 1709 | . . 1138 571 Core 404 | . . 323 81 Absorbed by Shields . | . . . . Core Remaining (%) 100 | 100 100 . . Volleys Fired 65 | 7 7 45 6 Largest 3 | 2 2 3 3 Hottest 170 | 40 100 115 170 Shots Fired 170 | 14 13 129 14 Gun 113 | 14 12 85 2 Cannon 54 | . . 42 12 Launcher . | . . . . Special 3 | . 1 2 . Kinetic 112 | 14 12 84 2 Thermal 58 | . 1 45 12 Explosive . | . . . . Electromagnetic . | . . . . Robot Hit Streak 9 | 3 2 9 4 Robot Miss Streak 7 | 2 7 4 1 Penetration Max . | . . . . Secondary Targets . | . . . . Shots Hit Robots 86 | 8 2 68 8 Core Hits 34 | 3 . 26 5 Critical Kills . | . . . . Critical Parts Destroyed 1 | . . 1 . Critical Strikes 1 | . . 1 . Destroy 1 | . . 1 . Melee Attacks . | . . . . Impact . | . . . . Slashing . | . . . . Piercing . | . . . . Sneak Attacks . | . . . . Combat Hostiles . | . . . . Follow-up Attacks . | . . . . Damage Inflicted 1398 | 81 20 1103 194 Guns 592 | 81 20 484 7 Cannons 775 | . . 600 175 Explosions . | . . . . Melee . | . . . . Ramming 31 | . . 19 12 Kinetic 592 | 81 20 484 7 Thermal 775 | . . 600 175 Explosive . | . . . . Electromagnetic . | . . . . Impact . | . . . . Slashing . | . . . . Piercing . | . . . . Highest Corruption . | . . . . Average Corruption . | . . . . Corruption Purged . | . . . . Corruption Blocked . | . . . . Overload Shots . | . . . . Overflow Damage . | . . . . Projectiles . | . . . . Explosions . | . . . . Melee . | . . . . Knockbacks . | . . . . Impact . | . . . . Kinetic . | . . . . Secondary . | . . . . Self-Inflicted Damage . | . . . . Shots . | . . . . Rammed 4 | . . 3 1 Targets Rammed 4 | . . 3 1 Kicked . | . . . . Crushed . | . . . . Highest Temperature 372 | . 20 372 252 Average Temperature 110 | . 10 116 91 Received Heat Transfer 624 | . . 624 . Effects 4 | . . 4 . Shutdowns 2 | . . 2 . Energy Bleed 2 | . . 2 . Siege Activations . | . . . . Martial Activations . | . . . . Shielding Activations . | . . . . Robots Disrupted . | . . . . Combat Hostiles . | . . . . Robots Corrupted . | . . . . Combat Hostiles . | . . . . Parts Fried . | . . . . Impact Corruptions . | . . . . Robots Melted . | . . . . Combat Hostiles . | . . . . Parts Melted 2 | . . 2 . Heat Transferred 1147 | . . 888 259 Parts Sabotaged . | . . . . Parts Stolen . | . . . . Parts Stripped . | . . . . Power Chain Reactions . | . . . . Alert | -11 -10 -9 -9 ------- Run | Yrd Mat Mat Min Maximum Alert Level . | . . . . Low Security (%) 100 | 100 100 100 100 Level 1 . | . . . . Level 2 . | . . . . Level 3 . | . . . . Level 4 . | . . . . Level 5 . | . . . . High Security . | . . . . Max Security . | . . . . Peak Influence 178 | 5 14 178 128 Initial 42 | . . . 42 Average 39 | . 1 49 92 Influence Increases 512 | 10 19 391 92 Destroy 0b10 Robot/C 300 | . . 240 60 Destroy 0b10 Robot/NC 25 | 10 . 10 5 Destroy Leader 74 | . . 64 10 Successful Hack 18 | . 18 . . Disable Machine 75 | . . 60 15 Destroy Structure 20 | . 1 17 2 Influence Decreases 458 | 10 19 281 148 Entered New Map 68 | . . . 68 Time Decay 290 | 10 19 201 60 Lost Part 100 | . . 80 20 Squads Dispatched 4 | . 1 3 . Investigation 1 | . 1 . . Extermination . | . . . . Reinforcement 3 | . . 3 . Assault . | . . . . Garrison . | . . . . Intercept . | . . . . Searches Triggered . | . . . . Construction Impeded 1 | . . 1 . Haulers Reinforced . | . . . . Active Scanning Responses . | . . . . Cargo Convoy Interrupts . | . . . . Stealth | -11 -10 -9 -9 --------- Run | Yrd Mat Mat Min Distress Signals 4 | . . 4 . Communications Jammed . | . . . . Distress Signals . | . . . . Times Spotted 36 | . 3 21 12 Peak Tracking Total 6 | . 3 6 6 Tactical Retreats . | . . . . Traps | -11 -10 -9 -9 ------- Run | Yrd Mat Mat Min Traps Triggered . | . . . . Indirectly . | . . . . Trap Hack Attempts . | . . . . Triggered . | . . . . Disarmed . | . . . . Reprogrammed . | . . . . Reused . | . . . . Traps Extracted . | . . . . Installed . | . . . . Triggered . | . . . . Machines | -11 -10 -9 -9 ---------- Run | Yrd Mat Mat Min Machines Disabled 5 | . . 4 1 Max in Single Turn 1 | . . 1 1 Machines Repaired . | . . . . Machines Dismantled . | . . . . Machines Sabotaged . | . . . . Overloaded Fab Kills . | . . . . Hacking | -11 -10 -9 -9 --------- Run | Yrd Mat Mat Min Machines Accessed 4 | . 4 . . Terminals 3 | . 3 . . Fabricators . | . . . . Repair Stations . | . . . . Recycling Units 1 | . 1 . . Scanalyzers . | . . . . Garrison Access . | . . . . Total Hacks 8 | . 8 . . Successful 5 | . 5 . . Failed 3 | . 3 . . Catastrophic . | . . . . Database Lockouts . | . . . . Manual 6 | . 6 . . Terminals 7 | . 7 . . Fabricators . | . . . . Repair Stations . | . . . . Recycling Units 1 | . 1 . . Scanalyzers . | . . . . Garrison Access . | . . . . Terminal Hacks 2 | . 2 . . Locate Traps 1 | . 1 . . Zone Layout 1 | . 1 . . Fabricator Hacks . | . . . . Repair Station Hacks . | . . . . Recycling Unit Hacks 1 | . 1 . . Recycle Component 1 | . 1 . . Scanalyzer . | . . . . Garrison Access Hacks . | . . . . Unauthorized Hacks 2 | . 2 . . Terminals 2 | . 2 . . Botnet 2 | . 2 . . Fabricators . | . . . . Repair Stations . | . . . . Recycling Units . | . . . . Scanalyzers . | . . . . Garrison Access . | . . . . Data Cores Recovered . | . . . . Used . | . . . . Hacking Detections 3 | . 3 . . Full Trace Events 1 | . 1 . . Feedback Events . | . . . . Feedback Blocked . | . . . . Robot Schematics Acquired . | . . . . Robots Built . | . . . . Authchips . | . . . . Time . | . . . . Total Robot Build Rating . | . . . . Part Schematics Acquired . | . . . . Parts Built . | . . . . Authchips . | . . . . Time . | . . . . Total Part Build Rating . | . . . . Part Studies Acquired . | . . . . Parts Repaired . | . . . . Time . | . . . . Parts Recycled 1 | . 1 . . Recycled Matter . | . . . . Retrieved Matter . | . . . . Retrieved Components . | . . . . Parts Scanalyzed . | . . . . Part Schematics Acquired . | . . . . Parts Damaged . | . . . . Bothacking | -11 -10 -9 -9 ------------ Run | Yrd Mat Mat Min Used RIF Installer . | . . . . Robots Hacked . | . . . . Non-combat . | . . . . Combat . | . . . . Robot Hacks Applied . | . . . . Relay Couplers Released . | . . . . Fabnet Peak Effective % . | . . . . Robots Rewired . | . . . . Allies Hacked . | . . . . Hacks Repelled . | . . . . Allies | -11 -10 -9 -9 -------- Run | Yrd Mat Mat Min Total Allies . | . . . . Largest Group . | . . . . Highest-Rated Group . | . . . . Highest-Rated Ally . | . . . . Total Orders . | . . . . Ally Attacks . | . . . . Total Damage . | . . . . Kills . | . . . . Allies Corrupted . | . . . . Allies Melted . | . . . . Intel | -11 -10 -9 -9 ------- Run | Yrd Mat Mat Min Active Infowar (turns) 668 | . 179 489 . Terrain 668 | . 179 489 . Robot Analysis Total . | . . . . Derelict Logs Recovered . | . . . . Drone Launches . | . . . . Drone Recoveries . | . . . . Exploration | -11 -10 -9 -9 ------------- Run | Yrd Mat Mat Min Turns Passed 1018 | 157 179 553 129 Spaces Moved 470 | 71 117 222 60 Core 20 | 9 . 11 . Treads 214 | . . 154 60 Legs 236 | 62 117 57 . Wheels . | . . . . Hover . | . . . . Flight . | . . . . Fastest Speed 50 | 50 120 120 160 Average Speed 156 | 172 131 163 160 Slowest Speed 500 | 190 190 500 160 Overloaded Moves . | . . . . Propulsion Burnouts . | . . . . Robots Hopped . | . . . . Potential Cave-ins . | . . . . Cave-ins Triggered . | . . . . Exploration Rate (%) 19 | 6 23 26 22 Regions Visited 3 Branch Regions 1 Pre-discovered Areas . | . . . . Known Exits Taken 1 | . . 1 . Unknown Exits Taken 2 | 1 1 . . Scrap Searched . | . . . . Spaces Dug 1 | . 1 . . Terrain Destroyed 18 | . 1 15 2 Melee . | . . . . Projectile 18 | . 1 15 2 AOE . | . . . . Terrain Rammed . | . . . . Walls Destroyed . | . . . . Machines Disabled . | . . . . Actions | -11 -10 -9 -9 --------- Run | Yrd Mat Mat Min Total 620 | 94 127 319 80 Wait 25 | . . 22 3 Move 467 | 70 116 221 60 Hop . | . . . . Pick Up 29 | 12 1 12 4 Fast Attach . | . . . . Attach 16 | 5 2 3 6 Detach . | . . . . Swap 8 | . 1 7 . Drop 6 | . . 6 . Fire 65 | 7 7 45 6 Melee . | . . . . Ram . | . . . . Kick . | . . . . Crush 4 | . . 3 1 Escape Stasis . | . . . . Rewire . | . . . . Trap . | . . . . Miscellaneous . | . . . . Route ------- -11/Scrapyard -10/Materials -9/Materials (discovered 2 exits: *Min / *Sto) -9/Mines History --------- Turn | Location | Event 36 | -11/Scrapyard | Discovered new exit (range 15) 158 | -11/Scrapyard | Entered Materials 295 | -10/Materials | Discovered new exit (range 15) 308 | -10/Materials | Build established: Mutant 337 | -10/Materials | Entered another Materials area 337 | -9/Materials | Evolved 2 slots: Utility x1, Weapon x1 520 | -9/Materials | Discovered new exit (range 14) 556 | -9/Materials | Identified exit to Storage 627 | -9/Materials | Build established: Skirmisher 838 | -9/Materials | Discovered new exit (range 13) 871 | -9/Materials | Core integrity fell below 50% 887 | -9/Materials | Identified exit to Mines 890 | -9/Materials | Core integrity fell below 20% 890 | -9/Materials | Entered Mines 907 | -9/Mines | Lost 7 parts (1p2n1u3w) 922 | -9/Mines | Met a Derelict bent on vengeance 979 | -9/Mines | Assembled infested the area 984 | -9/Mines | Assisted by a Guerilla fighting off Assembled 1019 | -9/Mines | Destroyed by as-78401 with Assembled Heavy Rifle Last Messages --------------- 00981_ Acquired Mni. Grenade Launcher. 00982_ A-02 Transporter destroyed. 00984_ A derelict emerges from the shadows: "You need to get out of here! I've been tracking a group of Assembled to figure out where they're coming from, and they're closing on this area, come on!" 00987_ Acquired Lgt. Treads. 00988_ Acquired 18 matter. 01007_ Acquired Flexi-carbon Leg. 01008_ as-67614 destroyed. 01012_ K-01 Serf collects debris. 01012_ as-60274 destroyed. 01012_ as-04284 destroyed. 01015_ The unstable cave ceiling collapses. 01016_ K-01 Serf collects debris. 01018_ The unstable cave ceiling collapses. 01018_ Hvy. Particle Cannon destroyed. 01018_ Lgt. Treads destroyed. 01018_ as-64417 destroyed. Map ----- +----------------------------------------------------+ | | | | | | | | | ?????????????????????????????????????????????????? | | ?????????????????????????????????????????????????? | | ?????????????????????????????????????????????????? | | ?????????????????????????????????????????????????? | | ?????????????????????????????????????????????????? | | ?????????????????????????????????????????????????? | | ?????????????????????????????????????????????????? | | ?????????????????????????????????????????????????? | | ?????????????????????????????????????????????????? | | ???????????????????####??????????????????????????? | | ############???????# ?????????????????#????????? | | #???????# #???????????????? #???????? | | "" #???????# #??????????????? ????????? | | "" #??????## #?????????????? ?????????? | | #?????## a#?????????????% #??????????? | | #?????# ##??####?###? #???????????? | | #?????# #### ## ## #????????????? | | #?????# ! =# #????????????? | | #### #######????## % #????????????? | | ???# #?????????## !%=a%#????????????? | | ???# #?######### % a!#????????????? | | ???# #?# @ ## !|#????????????? | | ???# #?# ##### ! #????????????????? | | ???# #?# #???## ] a #????????????????? | | ???# ### #????####### #????????????????? | | ??## ## #####??????### a ???????????????? | | ??# #????????# d k ###??????????????? | | ??# #????????# #????????????????? | | ??## ### #????????# d #????????????????? | | ???# ####???#????????## ##????????????????? | | ???# ##????????????????## % #?????????????????? | | ???# ##?????????????????? t ?????????????????? | | ???# #???????????????????# ????????????????? | | ???# #???????????????????### ????????????????? | | ???# #?????????????????????? ????????????????? | | ???# ??????????????????????? ?????????????????? | | ???# ??????????????????????? ???????????????????? | | ??? ????????????????????????????????????????????? | | ???##????????????????????????????????????????????? | | ?????????????????????????????????????????????????? | | ?????????????????????????????????????????????????? | | ?????????????????????????????????????????????????? | | ?????????????????????????????????????????????????? | | ?????????????????????????????????????????????????? | | ?????????????????????????????????????????????????? | | ?????????????????????????????????????????????????? | +----------------------------------------------------+ Best States ------------- Heat Dissipation 28 Energy Generation 14 Energy Capacity 140 Matter Stores 300 Matter Capacity 300 Sight Range 16 Terrain Scan Range 16 Terrain Scan Density 10 Evasion (%) 55 Recoil Reduction 2 Item Schematics ----------------- None Robot Schematics ------------------ None Fabricated ------------ Nothing Repaired ---------- Nothing Studied --------- None Alien Tech Used ----------------- None Achievements -------------- None Challenges ------------ None Game ------ Seed AssemblyCoolantLance Manual? 0 Play Time 00:11:03 Cumulative 62.9 hours Start 2025.11.11 @ 16:12:18 End 2025.11.11 @ 16:21:48 Sessions 1 Manual Loads 0 Difficulty Rogue Special Mode None Game No. 85 Rogue 85 Adventurer 0 Explorer 0 Win Type - Total 1 Types 1/0/0/0/0/0/0/0/0/0 Lore% 36 Gallery% 43 Achievement% 31 Wizard Run 0 Options --------- Layout 2 ASCII 0 Keyboard 0 Movement Mouse Keybinds 0 Fullscreen 1 Font 16/SmallcapsGlow Map View 25x24 Zoom Use 100% Tactical HUD 1 Map Filters NONE Filters NONE Steam SD RUN: b7454452-d4aa-4544-a2f9-21c7603e5212